[Event "January 2 Late 2024"]
[Site "https://www.chess.com"]
[Date "2024.01.02"]
[Round "1"]
[White "Sonnenschein, Philipp"]
[Black "Makarian, Rudik"]
[Result "0-1"]
[Board "14"]
[TimeControl "180+1"]
[WhiteFideId "16250877"]
[BlackFideId "44105681"]
[WhiteElo "2510"]
[BlackElo "3031"]
[WhiteTeam "GER"]
[BlackTeam "FID"]
[WhiteClock "0:00:00"]
[BlackClock "0:00:15"]

1. d4 {[%clk 0:03:00]}  Nf6 {[%clk 0:03:00]} 2. c4 {[%clk 0:03:01]}  e6 {[%clk 0:03:01]} 3. Nf3 {[%clk 0:03:01]}  d5 {[%clk 0:03:01]} 4. g3 {[%clk 0:03:01]}  Bb4+ {[%clk 0:03:02]} 5. Bd2 {[%clk 0:02:59]}  Be7 {[%clk 0:03:02]} 6. Bg2 {[%clk 0:02:59]}  O-O {[%clk 0:03:02]} 7. O-O {[%clk 0:02:59]}  Nbd7 {[%clk 0:03:03]} 8. Bc3 {[%clk 0:03:00]}  c6 {[%clk 0:03:01]} 9. Nbd2 {[%clk 0:02:59]}  a5 {[%clk 0:03:01]} 10. b3 {[%clk 0:02:53]}  b5 {[%clk 0:03:01]} 11. Re1 {[%clk 0:02:45]}  Ba6 {[%clk 0:02:58]} 12. Ne5 {[%clk 0:02:29]}  Nxe5 {[%clk 0:02:56]} 13. dxe5 {[%clk 0:02:30]}  Nd7 {[%clk 0:02:56]} 14. cxd5 {[%clk 0:02:30]}  cxd5 {[%clk 0:02:55]} 15. e4 {[%clk 0:02:29]}  b4 {[%clk 0:02:51]} 16. Bd4 {[%clk 0:02:27]}  Nc5 {[%clk 0:02:27]} 17. exd5 {[%clk 0:02:20]}  exd5 {[%clk 0:02:28]} 18. Qg4 {[%clk 0:01:54]}  Ne6 {[%clk 0:02:25]} 19. Bb2 {[%clk 0:01:53]}  Bc5 {[%clk 0:02:13]} 20. Rad1 {[%clk 0:01:45]}  Qb6 {[%clk 0:02:06]} 21. Qf3 {[%clk 0:01:32]}  Nd4 {[%clk 0:01:58]} 22. Qg4 {[%clk 0:01:26]}  Ne6 {[%clk 0:01:42]} 23. Qf3 {[%clk 0:01:25]}  Rad8 {[%clk 0:01:39]} 24. Nf1 {[%clk 0:01:20]}  Nd4 {[%clk 0:01:30]} 25. Qg4 {[%clk 0:01:20]}  h5 {[%clk 0:01:10]} 26. Qxh5 {[%clk 0:01:13]}  Nc2 {[%clk 0:01:09]} 27. e6 {[%clk 0:01:04]}  fxe6 {[%clk 0:00:31]} 28. Qg4 {[%clk 0:00:39]}  Rf7 {[%clk 0:00:27]} 29. Rxe6 {[%clk 0:00:37]}  Bxf2+ {[%clk 0:00:25]} 30. Kh1 {[%clk 0:00:37]}  Qa7 {[%clk 0:00:26]} 31. Rxd5 {[%clk 0:00:13]}  Rdf8 {[%clk 0:00:21]} 32. Rg5 {[%clk 0:00:09]}  Bd4 {[%clk 0:00:20]} 33. Bxd4 {[%clk 0:00:00]}  Nxd4 {[%clk 0:00:15]} 0-1

[Event "January 2 Late 2024"]
[Site "https://www.chess.com"]
[Date "2024.01.02"]
[Round "1"]
[White "Radjabov, Teimour"]
[Black "Dushyant Sharma"]
[Result "1-0"]
[Board "15"]
[TimeControl "180+1"]
[WhiteFideId "13400924"]
[BlackFideId "25065130"]
[WhiteElo "3031"]
[BlackElo "2510"]
[WhiteTeam "AZE"]
[BlackTeam "IND"]
[WhiteClock "0:01:27"]
[BlackClock "0:00:31"]

1. c4 {[%clk 0:02:53]}  e6 {[%clk 0:02:59]} 2. Nc3 {[%clk 0:02:52]}  d5 {[%clk 0:02:59]} 3. d4 {[%clk 0:02:53]}  c6 {[%clk 0:02:59]} 4. cxd5 {[%clk 0:02:49]}  exd5 {[%clk 0:02:59]} 5. Nf3 {[%clk 0:02:48]}  Nf6 {[%clk 0:02:53]} 6. Bf4 {[%clk 0:02:46]}  Bd6 {[%clk 0:02:54]} 7. Bg3 {[%clk 0:02:45]}  O-O {[%clk 0:02:52]} 8. e3 {[%clk 0:02:45]}  Bf5 {[%clk 0:02:49]} 9. Qb3 {[%clk 0:02:44]}  b6 {[%clk 0:02:45]} 10. Be2 {[%clk 0:02:43]}  Qe7 {[%clk 0:02:39]} 11. Ne5 {[%clk 0:02:37]}  Rc8 {[%clk 0:02:29]} 12. f4 {[%clk 0:02:29]}  Nbd7 {[%clk 0:02:28]} 13. Bh4 {[%clk 0:02:27]}  c5 {[%clk 0:02:21]} 14. Nxd5 {[%clk 0:02:25]}  Qe6 {[%clk 0:02:15]} 15. Nxf6+ {[%clk 0:02:23]}  Nxf6 {[%clk 0:01:58]} 16. Bc4 {[%clk 0:02:22]}  Qe7 {[%clk 0:01:48]} 17. Bxf7+ {[%clk 0:02:21]}  Kf8 {[%clk 0:01:48]} 18. O-O {[%clk 0:02:22]}  Be4 {[%clk 0:01:19]} 19. Be6 {[%clk 0:02:15]}  Re8 {[%clk 0:01:16]} 20. Nd7+ {[%clk 0:02:09]}  Qxd7 {[%clk 0:01:11]} 21. Bxd7 {[%clk 0:02:09]}  Nxd7 {[%clk 0:01:12]} 22. Rad1 {[%clk 0:02:07]}  Rac8 {[%clk 0:01:07]} 23. f5 {[%clk 0:01:45]}  c4 {[%clk 0:01:02]} 24. Qb5 {[%clk 0:01:43]}  Nf6 {[%clk 0:00:44]} 25. Bg3 {[%clk 0:01:37]}  Bxg3 {[%clk 0:00:36]} 26. hxg3 {[%clk 0:01:37]}  Nd5 {[%clk 0:00:36]} 27. Rc1 {[%clk 0:01:29]}  Bd3 {[%clk 0:00:31]} 28. Qxd5 {[%clk 0:01:27]} 1-0

[Event "January 2 Late 2024"]
[Site "https://www.chess.com"]
[Date "2024.01.02"]
[Round "1"]
[White "Medeiros Jr, Francisco De Assis"]
[Black "Keymer, Vincent"]
[Result "0-1"]
[Board "18"]
[TimeControl "180+1"]
[WhiteFideId "2114267"]
[BlackFideId "12940690"]
[WhiteElo "2508"]
[BlackElo "3028"]
[WhiteTeam "BRA"]
[BlackTeam "GER"]
[WhiteClock "0:00:21"]
[BlackClock "0:00:09"]

1. d4 {[%clk 0:03:00]}  Nf6 {[%clk 0:02:59]} 2. Nf3 {[%clk 0:03:01]}  e6 {[%clk 0:02:59]} 3. Bg5 {[%clk 0:02:58]}  h6 {[%clk 0:02:59]} 4. Bh4 {[%clk 0:02:57]}  c5 {[%clk 0:02:57]} 5. c3 {[%clk 0:02:54]}  Qb6 {[%clk 0:02:45]} 6. Qb3 {[%clk 0:02:52]}  cxd4 {[%clk 0:02:11]} 7. Qxb6 {[%clk 0:02:49]}  axb6 {[%clk 0:02:10]} 8. Bxf6 {[%clk 0:02:47]}  gxf6 {[%clk 0:02:07]} 9. cxd4 {[%clk 0:02:48]}  b5 {[%clk 0:01:42]} 10. e3 {[%clk 0:02:47]}  b4 {[%clk 0:01:40]} 11. Bd3 {[%clk 0:02:44]}  Nc6 {[%clk 0:01:30]} 12. Nbd2 {[%clk 0:02:42]}  d5 {[%clk 0:01:09]} 13. Ke2 {[%clk 0:02:42]}  f5 {[%clk 0:01:09]} 14. Bb5 {[%clk 0:02:37]}  Bd7 {[%clk 0:01:00]} 15. Nb3 {[%clk 0:02:38]}  Bd6 {[%clk 0:00:58]} 16. a4 {[%clk 0:02:26]}  bxa3 {[%clk 0:00:44]} 17. bxa3 {[%clk 0:02:27]}  Ke7 {[%clk 0:00:24]} 18. a4 {[%clk 0:02:25]}  Rhc8 {[%clk 0:00:23]} 19. Rac1 {[%clk 0:02:15]}  Be8 {[%clk 0:00:20]} 20. g3 {[%clk 0:01:52]}  Rc7 {[%clk 0:00:20]} 21. Rhd1 {[%clk 0:01:49]}  f6 {[%clk 0:00:19]} 22. Ne1 {[%clk 0:01:29]}  Rac8 {[%clk 0:00:17]} 23. Kf1 {[%clk 0:01:26]}  Na7 {[%clk 0:00:10]} 24. Bxe8 {[%clk 0:01:19]}  Kxe8 {[%clk 0:00:11]} 25. Ke2 {[%clk 0:01:16]}  Rc4 {[%clk 0:00:11]} 26. a5 {[%clk 0:01:10]}  Nb5 {[%clk 0:00:10]} 27. Nd3 {[%clk 0:01:05]}  Nc3+ {[%clk 0:00:09]} 28. Kf3 {[%clk 0:01:05]}  Nxd1 {[%clk 0:00:10]} 29. Rxd1 {[%clk 0:01:05]}  Ke7 {[%clk 0:00:08]} 30. Nbc5 {[%clk 0:01:05]}  Bxc5 {[%clk 0:00:08]} 31. Nxc5 {[%clk 0:01:06]}  Rb4 {[%clk 0:00:09]} 32. Ra1 {[%clk 0:00:59]}  Ra8 {[%clk 0:00:09]} 33. h4 {[%clk 0:00:48]}  Rb5 {[%clk 0:00:08]} 34. Kf4 {[%clk 0:00:43]}  Raxa5 {[%clk 0:00:08]} 35. Rxa5 {[%clk 0:00:43]}  Rxa5 {[%clk 0:00:09]} 36. Nxb7 {[%clk 0:00:43]}  Ra2 {[%clk 0:00:09]} 37. Kf3 {[%clk 0:00:40]}  Rc2 {[%clk 0:00:09]} 38. Nc5 {[%clk 0:00:39]}  e5 {[%clk 0:00:09]} 39. Nb3 {[%clk 0:00:32]}  Ke6 {[%clk 0:00:08]} 40. Nc5+ {[%clk 0:00:29]}  Kd6 {[%clk 0:00:06]} 41. Nb7+ {[%clk 0:00:28]}  Kc7 {[%clk 0:00:05]} 42. Nc5 {[%clk 0:00:28]}  Rxc5 {[%clk 0:00:05]} 43. dxc5 {[%clk 0:00:28]}  Kc6 {[%clk 0:00:06]} 44. g4 {[%clk 0:00:26]}  fxg4+ {[%clk 0:00:06]} 45. Kxg4 {[%clk 0:00:27]}  Kxc5 {[%clk 0:00:07]} 46. Kf5 {[%clk 0:00:28]}  d4 {[%clk 0:00:07]} 47. exd4+ {[%clk 0:00:25]}  exd4 {[%clk 0:00:08]} 48. Kxf6 {[%clk 0:00:21]}  d3 {[%clk 0:00:09]} 0-1

[Event "January 2 Late 2024"]
[Site "https://www.chess.com"]
[Date "2024.01.02"]
[Round "1"]
[White "Sarana, Alexey"]
[Black "Ferey, Antonin"]
[Result "1-0"]
[Board "23"]
[TimeControl "180+1"]
[WhiteFideId "24133795"]
[BlackFideId "36051454"]
[WhiteElo "3007"]
[BlackElo "2502"]
[WhiteTeam "SRB"]
[BlackTeam "FRA"]
[WhiteClock "0:01:48"]
[BlackClock "0:00:00"]

1. d4 {[%clk 0:03:00]}  Nf6 {[%clk 0:02:58]} 2. c4 {[%clk 0:03:01]}  e6 {[%clk 0:02:56]} 3. Nc3 {[%clk 0:03:02]}  Bb4 {[%clk 0:02:57]} 4. e3 {[%clk 0:03:00]}  c5 {[%clk 0:02:55]} 5. Bd3 {[%clk 0:03:00]}  Bxc3+ {[%clk 0:02:51]} 6. bxc3 {[%clk 0:02:59]}  d6 {[%clk 0:02:52]} 7. e4 {[%clk 0:02:58]}  e5 {[%clk 0:02:52]} 8. d5 {[%clk 0:02:58]}  b6 {[%clk 0:02:42]} 9. Ne2 {[%clk 0:02:57]}  Ba6 {[%clk 0:02:35]} 10. f4 {[%clk 0:02:49]}  exf4 {[%clk 0:02:34]} 11. Bxf4 {[%clk 0:02:50]}  Qe7 {[%clk 0:02:25]} 12. Ng3 {[%clk 0:02:48]}  Bc8 {[%clk 0:02:19]} 13. O-O {[%clk 0:02:46]}  Bg4 {[%clk 0:02:18]} 14. Qa4+ {[%clk 0:02:39]}  Nfd7 {[%clk 0:02:17]} 15. h3 {[%clk 0:02:36]}  g5 {[%clk 0:02:06]} 16. Bd2 {[%clk 0:02:34]}  Qe5 {[%clk 0:02:00]} 17. Be1 {[%clk 0:02:34]}  h5 {[%clk 0:00:59]} 18. hxg4 {[%clk 0:02:32]}  hxg4 {[%clk 0:01:00]} 19. Rf5 {[%clk 0:02:29]}  Qg7 {[%clk 0:00:55]} 20. Bd2 {[%clk 0:02:28]}  Qh6 {[%clk 0:00:47]} 21. Kf2 {[%clk 0:02:24]}  f6 {[%clk 0:00:36]} 22. e5 {[%clk 0:02:22]}  dxe5 {[%clk 0:00:35]} 23. Be4 {[%clk 0:02:15]}  a6 {[%clk 0:00:31]} 24. d6 {[%clk 0:02:10]}  Ra7 {[%clk 0:00:31]} 25. Rb1 {[%clk 0:02:09]}  Qh2 {[%clk 0:00:25]} 26. Rxb6 {[%clk 0:02:07]}  Rh3 {[%clk 0:00:19]} 27. Rxb8+ {[%clk 0:02:03]}  Kf7 {[%clk 0:00:19]} 28. Nf1 {[%clk 0:02:03]}  g3+ {[%clk 0:00:18]} 29. Ke1 {[%clk 0:02:02]}  Rh4 {[%clk 0:00:15]} 30. Bd5+ {[%clk 0:02:00]}  Kg6 {[%clk 0:00:15]} 31. Rg8+ {[%clk 0:01:55]}  Kh7 {[%clk 0:00:15]} 32. Qc2 {[%clk 0:01:51]}  e4 {[%clk 0:00:11]} 33. Re8 {[%clk 0:01:52]}  Ne5 {[%clk 0:00:11]} 34. Rexe5 {[%clk 0:01:49]}  fxe5 {[%clk 0:00:11]} 35. Bxe4 {[%clk 0:01:50]}  Kh6 {[%clk 0:00:08]} 36. Rf6+ {[%clk 0:01:48]}  Kg7 {[%clk 0:00:08]} 37. Bxg5 {[%clk 0:01:48]}  Rb7 {[%clk 0:00:02]} 38. Rg6+ {[%clk 0:01:48]}  Kf7 {[%clk 0:00:00]} 39. Bd5+ {[%clk 0:01:48]} 1-0

[Event "January 2 Late 2024"]
[Site "https://www.chess.com"]
[Date "2024.01.02"]
[Round "1"]
[White "Goncalves, Davi Sulzbacher"]
[Black "Kollars, Dmitrij"]
[Result "0-1"]
[Board "24"]
[TimeControl "180+1"]
[WhiteFideId "2154510"]
[BlackFideId "12909572"]
[WhiteElo "2502"]
[BlackElo "3000"]
[WhiteTeam "BRA"]
[BlackTeam "GER"]
[WhiteClock "0:00:02"]
[BlackClock "0:00:11"]

1. d4 {[%clk 0:03:00]}  d5 {[%clk 0:02:57]} 2. c4 {[%clk 0:03:01]}  e6 {[%clk 0:02:57]} 3. Nf3 {[%clk 0:03:01]}  Nf6 {[%clk 0:02:57]} 4. g3 {[%clk 0:03:01]}  Bb4+ {[%clk 0:02:48]} 5. Bd2 {[%clk 0:03:01]}  a5 {[%clk 0:02:48]} 6. Bg2 {[%clk 0:03:01]}  O-O {[%clk 0:02:48]} 7. O-O {[%clk 0:03:01]}  dxc4 {[%clk 0:02:48]} 8. Qc2 {[%clk 0:02:59]}  Bxd2 {[%clk 0:02:48]} 9. Nbxd2 {[%clk 0:02:41]}  b5 {[%clk 0:02:48]} 10. a4 {[%clk 0:02:42]}  c6 {[%clk 0:02:48]} 11. e4 {[%clk 0:02:41]}  Na6 {[%clk 0:02:41]} 12. e5 {[%clk 0:02:38]}  Nb4 {[%clk 0:02:40]} 13. Qb1 {[%clk 0:02:30]}  Nfd5 {[%clk 0:02:40]} 14. Ne4 {[%clk 0:02:27]}  h6 {[%clk 0:02:33]} 15. Rd1 {[%clk 0:02:26]}  Qb6 {[%clk 0:02:18]} 16. h4 {[%clk 0:02:01]}  Bb7 {[%clk 0:02:02]} 17. h5 {[%clk 0:02:01]}  Nd3 {[%clk 0:01:56]} 18. b3 {[%clk 0:01:55]}  N5b4 {[%clk 0:01:45]} 19. bxc4 {[%clk 0:01:46]}  bxc4 {[%clk 0:01:46]} 20. Nd6 {[%clk 0:01:45]}  Rad8 {[%clk 0:01:16]} 21. Nxc4 {[%clk 0:01:43]}  Qa6 {[%clk 0:01:03]} 22. Nd6 {[%clk 0:01:36]}  Rxd6 {[%clk 0:00:43]} 23. exd6 {[%clk 0:01:37]}  c5 {[%clk 0:00:44]} 24. Ne5 {[%clk 0:00:53]}  Bxg2 {[%clk 0:00:40]} 25. Kxg2 {[%clk 0:00:51]}  c4 {[%clk 0:00:41]} 26. d7 {[%clk 0:00:40]}  f6 {[%clk 0:00:40]} 27. Nxd3 {[%clk 0:00:36]}  cxd3 {[%clk 0:00:41]} 28. Qb3 {[%clk 0:00:35]}  Rd8 {[%clk 0:00:32]} 29. Re1 {[%clk 0:00:35]}  Kf7 {[%clk 0:00:28]} 30. Re3 {[%clk 0:00:24]}  Nc2 {[%clk 0:00:21]} 31. Qxd3 {[%clk 0:00:15]}  Qxd3 {[%clk 0:00:19]} 32. Rxd3 {[%clk 0:00:16]}  Nxa1 {[%clk 0:00:19]} 33. Ra3 {[%clk 0:00:08]}  Nc2 {[%clk 0:00:19]} 34. Rc3 {[%clk 0:00:07]}  Nxd4 {[%clk 0:00:19]} 35. Rc5 {[%clk 0:00:07]}  Rxd7 {[%clk 0:00:18]} 36. Rxa5 {[%clk 0:00:07]}  e5 {[%clk 0:00:16]} 37. Rc5 {[%clk 0:00:07]}  Ra7 {[%clk 0:00:16]} 38. a5 {[%clk 0:00:07]}  Nb3 {[%clk 0:00:16]} 39. Rc3 {[%clk 0:00:06]}  Nxa5 {[%clk 0:00:15]} 40. f4 {[%clk 0:00:07]}  Re7 {[%clk 0:00:13]} 41. f5 {[%clk 0:00:07]}  Nb7 {[%clk 0:00:13]} 42. Kf3 {[%clk 0:00:07]}  Nd6 {[%clk 0:00:13]} 43. g4 {[%clk 0:00:08]}  Nb5 {[%clk 0:00:13]} 44. Rc4 {[%clk 0:00:06]}  e4+ {[%clk 0:00:13]} 45. Ke3 {[%clk 0:00:06]}  Nc7 {[%clk 0:00:12]} 46. Rc5 {[%clk 0:00:06]}  Ne8 {[%clk 0:00:11]} 47. Rc6 {[%clk 0:00:07]}  Kf8 {[%clk 0:00:11]} 48. Rb6 {[%clk 0:00:07]}  Re5 {[%clk 0:00:11]} 49. Rc6 {[%clk 0:00:07]}  Ke7 {[%clk 0:00:10]} 50. Rb6 {[%clk 0:00:05]}  Nd6 {[%clk 0:00:11]} 51. Rc6 {[%clk 0:00:05]}  Kd7 {[%clk 0:00:11]} 52. Ra6 {[%clk 0:00:04]}  Nc4+ {[%clk 0:00:10]} 53. Ke2 {[%clk 0:00:05]}  Rc5 {[%clk 0:00:09]} 54. Ra7+ {[%clk 0:00:05]}  Rc7 {[%clk 0:00:09]} 55. Ra4 {[%clk 0:00:04]}  Nd6 {[%clk 0:00:09]} 56. Rd4 {[%clk 0:00:05]}  Rc2+ {[%clk 0:00:08]} 57. Ke3 {[%clk 0:00:05]}  Rc3+ {[%clk 0:00:09]} 58. Ke2 {[%clk 0:00:04]}  Rc4 {[%clk 0:00:09]} 59. Rd5 {[%clk 0:00:04]}  e3 {[%clk 0:00:09]} 60. Kf3 {[%clk 0:00:03]}  e2 {[%clk 0:00:09]} 61. Kxe2 {[%clk 0:00:03]}  Rxg4 {[%clk 0:00:09]} 62. Ra5 {[%clk 0:00:03]}  Rg5 {[%clk 0:00:10]} 63. Ke3 {[%clk 0:00:03]}  Kc6 {[%clk 0:00:11]} 64. Ra6+ {[%clk 0:00:03]}  Kc5 {[%clk 0:00:11]} 65. Ra5+ {[%clk 0:00:04]}  Kb6 {[%clk 0:00:11]} 66. Rd5 {[%clk 0:00:04]}  Nxf5+ {[%clk 0:00:12]} 67. Kf4 {[%clk 0:00:03]}  Ne7 {[%clk 0:00:11]} 68. Rd7 {[%clk 0:00:04]}  Nc6 {[%clk 0:00:11]} 69. Rf7 {[%clk 0:00:03]}  Ne5 {[%clk 0:00:11]} 70. Rd7 {[%clk 0:00:02]}  Nxd7 {[%clk 0:00:11]} 0-1

[Event "January 2 Late 2024"]
[Site "https://www.chess.com"]
[Date "2024.01.02"]
[Round "1"]
[White "Van Foreest, Jorden"]
[Black "xakevicius91"]
[Result "1-0"]
[Board "25"]
[TimeControl "180+1"]
[WhiteFideId "1039784"]
[WhiteElo "2998"]
[BlackElo "2502"]
[WhiteTeam "NED"]
[WhiteClock "0:02:04"]
[BlackClock "0:00:01"]

1. d4 {[%clk 0:02:59]}  Nf6 {[%clk 0:02:59]} 2. c4 {[%clk 0:02:58]}  e6 {[%clk 0:02:59]} 3. Nf3 {[%clk 0:02:57]}  b6 {[%clk 0:03:00]} 4. Nc3 {[%clk 0:02:55]}  Bb4 {[%clk 0:02:58]} 5. e3 {[%clk 0:02:52]}  O-O {[%clk 0:02:56]} 6. Bd3 {[%clk 0:02:52]}  d5 {[%clk 0:02:53]} 7. O-O {[%clk 0:02:52]}  dxc4 {[%clk 0:02:48]} 8. Bxc4 {[%clk 0:02:53]}  c5 {[%clk 0:02:48]} 9. Qe2 {[%clk 0:02:51]}  cxd4 {[%clk 0:02:40]} 10. exd4 {[%clk 0:02:50]}  Bb7 {[%clk 0:02:40]} 11. Rd1 {[%clk 0:02:49]}  Nbd7 {[%clk 0:02:37]} 12. d5 {[%clk 0:02:47]}  exd5 {[%clk 0:02:18]} 13. Nxd5 {[%clk 0:02:48]}  Nxd5 {[%clk 0:02:16]} 14. Bxd5 {[%clk 0:02:49]}  Bxd5 {[%clk 0:02:16]} 15. Rxd5 {[%clk 0:02:50]}  Qc7 {[%clk 0:02:09]} 16. a3 {[%clk 0:02:47]}  Nf6 {[%clk 0:01:58]} 17. Rd1 {[%clk 0:02:45]}  Rfe8 {[%clk 0:01:52]} 18. Be3 {[%clk 0:02:38]}  Bc5 {[%clk 0:01:47]} 19. Qc2 {[%clk 0:02:38]}  Rxe3 {[%clk 0:01:37]} 20. b4 {[%clk 0:02:39]}  Rxf3 {[%clk 0:01:22]} 21. gxf3 {[%clk 0:02:35]}  Bd6 {[%clk 0:01:17]} 22. Qxc7 {[%clk 0:02:36]}  Bxc7 {[%clk 0:01:18]} 23. Rac1 {[%clk 0:02:35]}  Bf4 {[%clk 0:01:16]} 24. Rc6 {[%clk 0:02:30]}  h5 {[%clk 0:01:11]} 25. Rd4 {[%clk 0:02:28]}  Be5 {[%clk 0:01:11]} 26. Rdc4 {[%clk 0:02:27]}  Rd8 {[%clk 0:01:01]} 27. Rc8 {[%clk 0:02:27]}  Rxc8 {[%clk 0:01:00]} 28. Rxc8+ {[%clk 0:02:28]}  Kh7 {[%clk 0:01:00]} 29. Ra8 {[%clk 0:02:28]}  Nd5 {[%clk 0:00:29]} 30. Rxa7 {[%clk 0:02:29]}  Nc3 {[%clk 0:00:29]} 31. Rxf7 {[%clk 0:02:27]}  Kg6 {[%clk 0:00:28]} 32. Ra7 {[%clk 0:02:24]}  b5 {[%clk 0:00:22]} 33. Ra6+ {[%clk 0:02:17]}  Kf5 {[%clk 0:00:21]} 34. h3 {[%clk 0:02:13]}  Nb1 {[%clk 0:00:18]} 35. a4 {[%clk 0:02:10]}  bxa4 {[%clk 0:00:18]} 36. Rxa4 {[%clk 0:02:11]}  Nc3 {[%clk 0:00:18]} 37. Ra5 {[%clk 0:02:11]}  Kf4 {[%clk 0:00:15]} 38. b5 {[%clk 0:02:09]}  Bc7 {[%clk 0:00:11]} 39. Ra7 {[%clk 0:02:10]}  Bb6 {[%clk 0:00:07]} 40. Rxg7 {[%clk 0:02:08]}  Nd5 {[%clk 0:00:05]} 41. Rf7+ {[%clk 0:02:08]}  Ke5 {[%clk 0:00:05]} 42. Kf1 {[%clk 0:02:08]}  h4 {[%clk 0:00:05]} 43. Rh7 {[%clk 0:02:08]}  Kf4 {[%clk 0:00:04]} 44. Rxh4+ {[%clk 0:02:07]}  Kxf3 {[%clk 0:00:05]} 45. Rh5 {[%clk 0:02:08]}  Ke4 {[%clk 0:00:05]} 46. Rh6 {[%clk 0:02:07]}  Ke5 {[%clk 0:00:05]} 47. h4 {[%clk 0:02:07]}  Ke4 {[%clk 0:00:05]} 48. h5 {[%clk 0:02:06]}  Bd4 {[%clk 0:00:04]} 49. Rd6 {[%clk 0:02:06]}  Bc5 {[%clk 0:00:04]} 50. Re6+ {[%clk 0:02:03]}  Kf5 {[%clk 0:00:04]} 51. Rc6 {[%clk 0:02:03]}  Bd4 {[%clk 0:00:03]} 52. h6 {[%clk 0:02:04]}  Nf4 {[%clk 0:00:01]} 53. h7 {[%clk 0:02:04]} 1-0

[Event "January 2 Late 2024"]
[Site "https://www.chess.com"]
[Date "2024.01.02"]
[Round "1"]
[White "N_Mullodzhanov"]
[Black "Svane, Rasmus"]
[Result "0-1"]
[Board "28"]
[TimeControl "180+1"]
[BlackFideId "4657101"]
[WhiteElo "2500"]
[BlackElo "2992"]
[BlackTeam "GER"]
[WhiteClock "0:00:45"]
[BlackClock "0:00:22"]

1. e4 {[%clk 0:02:51]}  c6 {[%clk 0:02:56]} 2. Nc3 {[%clk 0:02:48]}  d5 {[%clk 0:02:57]} 3. Nf3 {[%clk 0:02:48]}  dxe4 {[%clk 0:02:55]} 4. Nxe4 {[%clk 0:02:47]}  Nf6 {[%clk 0:02:56]} 5. Nxf6+ {[%clk 0:02:47]}  exf6 {[%clk 0:02:57]} 6. d4 {[%clk 0:02:48]}  Bd6 {[%clk 0:02:56]} 7. Bd3 {[%clk 0:02:48]}  O-O {[%clk 0:02:56]} 8. O-O {[%clk 0:02:47]}  Re8 {[%clk 0:02:57]} 9. h3 {[%clk 0:02:48]}  Nd7 {[%clk 0:02:57]} 10. Be3 {[%clk 0:02:48]}  Nf8 {[%clk 0:02:57]} 11. c3 {[%clk 0:02:48]}  Be6 {[%clk 0:02:56]} 12. Qc2 {[%clk 0:02:49]}  Ng6 {[%clk 0:02:55]} 13. Rae1 {[%clk 0:02:47]}  Qd7 {[%clk 0:02:55]} 14. Bxg6 {[%clk 0:02:42]}  hxg6 {[%clk 0:02:53]} 15. Bc1 {[%clk 0:02:32]}  g5 {[%clk 0:02:25]} 16. c4 {[%clk 0:02:23]}  Bxh3 {[%clk 0:02:00]} 17. gxh3 {[%clk 0:02:16]}  Qxh3 {[%clk 0:02:01]} 18. Qd3 {[%clk 0:02:15]}  Bh2+ {[%clk 0:01:33]} 19. Kh1 {[%clk 0:02:05]}  Bd6+ {[%clk 0:01:29]} 20. Kg1 {[%clk 0:02:03]}  g4 {[%clk 0:01:26]} 21. Ne5 {[%clk 0:01:53]}  fxe5 {[%clk 0:01:24]} 22. Qxh3 {[%clk 0:01:53]}  gxh3 {[%clk 0:01:25]} 23. c5 {[%clk 0:01:53]}  Bc7 {[%clk 0:01:24]} 24. Be3 {[%clk 0:01:44]}  Rad8 {[%clk 0:01:22]} 25. dxe5 {[%clk 0:01:40]}  Bxe5 {[%clk 0:01:20]} 26. Bg5 {[%clk 0:01:40]}  f6 {[%clk 0:01:19]} 27. Bh4 {[%clk 0:01:36]}  Bxb2 {[%clk 0:01:14]} 28. Rxe8+ {[%clk 0:01:35]}  Rxe8 {[%clk 0:01:15]} 29. Rb1 {[%clk 0:01:35]}  Re2 {[%clk 0:01:15]} 30. Kh2 {[%clk 0:01:36]}  b6 {[%clk 0:00:56]} 31. cxb6 {[%clk 0:01:32]}  axb6 {[%clk 0:00:57]} 32. Kxh3 {[%clk 0:01:32]}  Bd4 {[%clk 0:00:57]} 33. Kg2 {[%clk 0:01:29]}  Rxa2 {[%clk 0:00:56]} 34. Rb4 {[%clk 0:01:28]}  Rd2 {[%clk 0:00:50]} 35. Bg3 {[%clk 0:01:28]}  Kf7 {[%clk 0:00:49]} 36. Kf3 {[%clk 0:01:24]}  Ke6 {[%clk 0:00:47]} 37. Rb1 {[%clk 0:01:21]}  b5 {[%clk 0:00:46]} 38. Re1+ {[%clk 0:01:19]}  Kd5 {[%clk 0:00:45]} 39. Re7 {[%clk 0:01:19]}  g5 {[%clk 0:00:43]} 40. Kg4 {[%clk 0:01:19]}  b4 {[%clk 0:00:41]} 41. Kf5 {[%clk 0:01:17]}  b3 {[%clk 0:00:40]} 42. Rb7 {[%clk 0:01:17]}  b2 {[%clk 0:00:40]} 43. f4 {[%clk 0:01:06]}  gxf4 {[%clk 0:00:34]} 44. Bxf4 {[%clk 0:01:02]}  Rd1 {[%clk 0:00:35]} 45. Be3 {[%clk 0:00:54]}  b1=Q+ {[%clk 0:00:32]} 46. Rxb1 {[%clk 0:00:53]}  Rxb1 {[%clk 0:00:33]} 47. Bh6 {[%clk 0:00:53]}  c5 {[%clk 0:00:33]} 48. Kf4 {[%clk 0:00:53]}  c4 {[%clk 0:00:32]} 49. Kf3 {[%clk 0:00:53]}  c3 {[%clk 0:00:33]} 50. Ke2 {[%clk 0:00:53]}  Ke4 {[%clk 0:00:33]} 51. Bf8 {[%clk 0:00:47]}  f5 {[%clk 0:00:31]} 52. Bc5 {[%clk 0:00:45]}  Rb2+ {[%clk 0:00:25]} 53. Kd1 {[%clk 0:00:44]}  Bxc5 {[%clk 0:00:25]} 54. Ke1 {[%clk 0:00:45]}  f4 {[%clk 0:00:25]} 55. Kf1 {[%clk 0:00:45]}  f3 {[%clk 0:00:25]} 56. Ke1 {[%clk 0:00:45]}  Be3 {[%clk 0:00:25]} 57. Kd1 {[%clk 0:00:45]}  Kd3 {[%clk 0:00:24]} 58. Ke1 {[%clk 0:00:45]}  Rb1# {[%clk 0:00:22]} 0-1

[Event "January 2 Late 2024"]
[Site "https://www.chess.com"]
[Date "2024.01.02"]
[Round "1"]
[White "Salem, A.R. Saleh"]
[Black "Dobre, Claudiu-Cristian"]
[Result "1-0"]
[Board "29"]
[TimeControl "180+1"]
[WhiteFideId "9301348"]
[BlackFideId "1211854"]
[WhiteElo "2985"]
[BlackElo "2500"]
[WhiteTeam "UAE"]
[BlackTeam "ROU"]
[WhiteClock "0:01:13"]
[BlackClock "0:00:00"]

1. d4 {[%clk 0:03:00]}  d5 {[%clk 0:02:58]} 2. c4 {[%clk 0:03:01]}  c6 {[%clk 0:02:59]} 3. Nc3 {[%clk 0:03:01]}  Nf6 {[%clk 0:02:59]} 4. Nf3 {[%clk 0:03:02]}  e6 {[%clk 0:02:59]} 5. g3 {[%clk 0:03:02]}  Nbd7 {[%clk 0:02:58]} 6. Bg2 {[%clk 0:03:01]}  dxc4 {[%clk 0:02:58]} 7. O-O {[%clk 0:03:01]}  Be7 {[%clk 0:02:37]} 8. e4 {[%clk 0:02:59]}  b5 {[%clk 0:02:35]} 9. h4 {[%clk 0:02:58]}  b4 {[%clk 0:02:14]} 10. e5 {[%clk 0:02:56]}  bxc3 {[%clk 0:01:49]} 11. exf6 {[%clk 0:02:56]}  Nxf6 {[%clk 0:01:29]} 12. bxc3 {[%clk 0:02:54]}  c5 {[%clk 0:00:59]} 13. Ne5 {[%clk 0:02:53]}  Nd5 {[%clk 0:00:59]} 14. Nc6 {[%clk 0:02:53]}  Qc7 {[%clk 0:00:38]} 15. Nxe7 {[%clk 0:02:52]}  Qxe7 {[%clk 0:00:38]} 16. Ba3 {[%clk 0:02:53]}  Bb7 {[%clk 0:00:21]} 17. Bxc5 {[%clk 0:02:52]}  Qd7 {[%clk 0:00:20]} 18. Rb1 {[%clk 0:02:51]}  f6 {[%clk 0:00:19]} 19. Qh5+ {[%clk 0:02:44]}  g6 {[%clk 0:00:19]} 20. Qh6 {[%clk 0:02:44]}  Kf7 {[%clk 0:00:19]} 21. Rfe1 {[%clk 0:02:45]}  Bc6 {[%clk 0:00:17]} 22. h5 {[%clk 0:02:06]}  g5 {[%clk 0:00:16]} 23. Be4 {[%clk 0:02:03]}  f5 {[%clk 0:00:12]} 24. Bg2 {[%clk 0:01:38]}  Rae8 {[%clk 0:00:09]} 25. Re5 {[%clk 0:01:39]}  a6 {[%clk 0:00:08]} 26. Rbe1 {[%clk 0:01:38]}  g4 {[%clk 0:00:06]} 27. f3 {[%clk 0:01:20]}  Nf6 {[%clk 0:00:06]} 28. d5 {[%clk 0:01:11]}  Bxd5 {[%clk 0:00:06]} 29. Bd4 {[%clk 0:01:12]}  gxf3 {[%clk 0:00:00]} 30. Rxf5 {[%clk 0:01:13]} 1-0